{"text_format":"1","workbook":"xlsx","n_sheets":14,"sheets":["Portada","Créditos","Presentación","Índice","Hoja22","Hoja23","Hoja24","Hoja25","Hoja26","Hoja27","Hoja28","Hoja29","Hoja30","Anexo PANOTRATSS"],"not_rendered":{"charts":6,"images":4,"macros":1,"external_links":0,"defined_names":10,"comments":0,"pivot_tables":0},"unopened":[],"bounds":{"document_bytes":16777216,"sheet_cells":100000,"rows_first":2000,"rows_last":500,"rows_between":2000,"halvings":0,"cell_chars":16384,"cell_head_chars":4096},"cells_cut":0,"cells_raw":0,"read":"whole","date_system":"1900"}

{"sheet":"Portada","index":0,"n_rows":0,"n_cols":0,"rows_kept":0,"cut":false,"hidden":false,"merged":[[0,0,10,9]]}

{"sheet":"Créditos","index":1,"n_rows":36,"n_cols":1,"rows_kept":36,"cut":false,"hidden":false,"merged":[]}
["CONSEJERÍA DE ECONOMÍA, HACIENDA Y EMPLEO "]
[]
["Consejera de Economía, Hacienda y Empleo"]
["Excma. Sra. Dña. Rocío Albert López-Ibor"]
[]
["Viceconsejero de Economía y Empleo"]
["Ilmo. Sr. D. Daniel Rodríguez Asensio"]
[]
["Directora General de Trabajo y Gerente del Instituto Regional"]
["de Seguridad y Salud en el Trabajo"]
["Ilma. Sra. Doña Silvia Marina Parra Rudilla"]
[]
["Elaboración"]
["Dirección"]
["Silvia Marina Parra Rudilla, Directora General de Trabajo"]
["y Gerente del Instituto Regional de Seguridad y Salud en el Trabajo"]
[]
["Autoría"]
["Daniel Renes Diliz "]
["Unidad Técnica de Estadística "]
[]
["Unidad Branding, Comunicación y  Relaciones Institucionales "]
["Alberto Muñoz González"]
["Germán Blázquez López"]
["Carmen Zazo Martínez"]
["Adolfo Pavón Cabrera"]
["Rosa Rebollo Codón"]
["Paula Panadero Moya"]
[]
["© Comunidad de Madrid, 2024"]
[]
["Edita: Instituto Regional de Seguridad y Salud en el Trabajo"]
["Ventura Rodríguez, 7. 28008 Madrid"]
["Tel.: 900 713 123 Fax.: 91 420 61 17"]
["irsst.formacion@madrid.org"]
["https://www.comunidad.madrid"]

{"sheet":"Presentación","index":2,"n_rows":9,"n_cols":1,"rows_kept":9,"cut":false,"hidden":false,"merged":[]}
["Presentación"]
["El Instituto Regional de Seguridad y Salud en el Trabajo de la Comunidad de Madrid desarrolla acciones dirigidas a la mejora de las condiciones de seguridad y salud en el trabajo, así como a la lucha contra la siniestralidad laboral. En este sentido, y entre otras actuaciones, desde este organismo se realiza el análisis e investigación de las enfermedades profesionales declaradas en la región, con el fin de conocer las causas que las originan e impulsar medidas que contribuyan a reducir las causas de las mismas."]
["Con la publicación de este informe, la Consejería de Economía, Hacienda y Empleo, a través del Instituto Regional de Seguridad y Salud en el Trabajo, ofrece a todos los agentes involucrados una información imprescindible en relación con la caracterización pormenorizada de las enfermedades profesionales declaradas en 2023. De este modo, se presenta información sobre el perfil del trabajador, las características de la empresa o los agentes causantes de las mismas entre otras. Asimismo, el informe proporciona información sobre patologías no traumáticas declaradas en el mismo periodo. "]
["Desde el Instituto Regional de Seguridad y Salud en el Trabajo de la Comunidad de Madrid esperamos que la publicación de este documento se convierta en una herramienta de gran utilidad para todos los que desde cualquier ámbito, público o privado, dedicamos importantes recursos para el diseño y elaboración de estrategias en la lucha contra la siniestralidad laboral."]
[]
[]
["Doña Silvia Marina Parra Rudilla"]
["Directora General de Trabajo"]
["y Gerente del Instituto Regional de Seguridad y Salud en el Trabajo"]

{"sheet":"Índice","index":3,"n_rows":19,"n_cols":6,"rows_kept":19,"cut":false,"hidden":false,"merged":[[14,0,14,6]]}
[" INSTITUTO REGIONAL DE SEGURIDAD Y SALUD EN EL TRABAJO"]
["COMUNIDAD DE MADRID"]
[]
[]
[]
["Estadística de patologías no traumáticas causadas por el trabajo en la Comunidad de Madrid",null,null,null,null,2023]
[]
["T1 Partes de enfermedades causadas o agravadas por el trabajo comunicados por sexo  Comunidad de Madrid"]
["T2 Partes de enfermedades causadas o agravadas por el trabajo comunicados por sexo, situación y enfermedad. "]
["T3 Partes de enfermedades causadas o agravadas por el trabajo comunicados por tipo patología, situación y categoria"]
["T4 Partes de enfermedades causadas o agravadas por el trabajo comunicados por sección de actividad y sexo"]
["T5 Partes de enfermedades causadas o agravadas por el trabajo comunicados por edad y sexo según situación"]
["T6 Partes de enfermedades causadas o agravadas por el trabajo comunicados por nacionalidad y sexo según situación ordenados por frecuencia"]
["T7 Partes de enfermedades causadas o agravadas por el trabajo comunicados por ocupación y sexo según situación ordenados por frecuencia"]
["T8 Partes de enfermedades causadas o agravadas por el trabajo comunicados por ocupación según categoria"]
["T9 Partes de enfermedad comunicados por  grupo de enfermedad, sexo según sector de actividad "]
[]
[]
["ANEXO PANOTRATSS"]

{"sheet":"Hoja22","index":4,"n_rows":11,"n_cols":10,"rows_kept":11,"cut":false,"hidden":true,"merged":[[10,0,10,9],[4,0,4,9],[5,1,5,3],[5,4,5,6],[5,7,5,9]]}
[]
[]
[]
[]
["T1 Partes de enfermedades causadas o agravadas por el trabajo comunicados por sexo  Comunidad de Madrid"]
[{"$f":"Índice!F6","v":2023},"Total",null,null,"Hombres",null,null," Mujeres"]
[null,"Total","Enfermedad causada por el trabajo","Enfermedad o defecto agravado por el trabajo","Total","Enfermedad causada por el trabajo","Enfermedad o defecto agravado por el trabajo","Total","Enfermedad causada por el trabajo","Enfermedad o defecto agravado por el trabajo"]
["Total",291,273,18,207,192,15,84,81,3]
["Con baja",177,163,14,129,116,13,48,47,1]
["Sin baja",114,110,4,78,76,2,36,34,2]
["Fuente: PANOTRATSS"]

{"sheet":"Hoja23","index":5,"n_rows":31,"n_cols":254,"rows_kept":31,"cut":false,"hidden":true,"merged":[[27,0,28,0],[15,0,16,0],[17,0,18,0],[20,0,24,0],[25,0,26,0],[4,2,4,4],[4,5,4,7],[4,8,4,10],[9,0,10,0],[12,0,14,0]]}
[null,null,null,null,null,null,null,null,null,null,null,null,null,null,null,null,null,null,null,null,null,null,null,null,null,null,null,null,null,null,null,null,null,null,null,null,null,null,null,null,null,null,null,null,null,null,null,null,null,null,null,null,null,null,null,null,null,null,null,null,null,null,null,null,null,null,null,null,null,null,null,null,null,null,null,null,null,null,null,null,null,null,null,null,null,null,null,null,null,null,null,null,null,null,null,null,null,null,null,null,null,null,null,null,null,null,null,null,null,null,null,null,null,null,null,null,null,null,null,null,null,null,null,null,null,null,null,null,null,null,null,null,null,null,null,null,null,null,null,null,null,null,null,null,null,null,null,null,null,null,null,null,null,null,null,null,null,null,null,null,null,null,null,null,null,null,null,null,null,null,null,null,null,null,null,null,null,null,null,null,null,null,null,null,null,null,null,null,null,null,null,null,null,null,null,null,null,null,null,null,null,null,null,null,null,null,null,null,null,null,null,null,null,null,null,null,null,null,null,null,null,null,null,null,null,null,null,null,null,null,null,null,null,null,null,null,null,null,null,null,null,null,null,null,null,null,null,null,null,null,null,null," 01. Enfermedades infecciosas y parasitarias",1]
[null,null,null,null,null,null,null,null,null,null,null,null,null,null,null,null,null,null,null,null,null,null,null,null,null,null,null,null,null,null,null,null,null,null,null,null,null,null,null,null,null,null,null,null,null,null,null,null,null,null,null,null,null,null,null,null,null,null,null,null,null,null,null,null,null,null,null,null,null,null,null,null,null,null,null,null,null,null,null,null,null,null,null,null,null,null,null,null,null,null,null,null,null,null,null,null,null,null,null,null,null,null,null,null,null,null,null,null,null,null,null,null,null,null,null,null,null,null,null,null,null,null,null,null,null,null,null,null,null,null,null,null,null,null,null,null,null,null,null,null,null,null,null,null,null,null,null,null,null,null,null,null,null,null,null,null,null,null,null,null,null,null,null,null,null,null,null,null,null,null,null,null,null,null,null,null,null,null,null,null,null,null,null,null,null,null,null,null,null,null,null,null,null,null,null,null,null,null,null,null,null,null,null,null,null,null,null,null,null,null,null,null,null,null,null,null,null,null,null,null,null,null,null,null,null,null,null,null,null,null,null,null,null,null,null,null,null,null,null,null,null,null,null,null,null,null,null,null,null,null,null,null," 03. Enfermedades de la sangre y del sistema inmunológico",1]
[null,null,null,null,null,null,null,null,null,null,null,null,null,null,null,null,null,null,null,null,null,null,null,null,null,null,null,null,null,null,null,null,null,null,null,null,null,null,null,null,null,null,null,null,null,null,null,null,null,null,null,null,null,null,null,null,null,null,null,null,null,null,null,null,null,null,null,null,null,null,null,null,null,null,null,null,null,null,null,null,null,null,null,null,null,null,null,null,null,null,null,null,null,null,null,null,null,null,null,null,null,null,null,null,null,null,null,null,null,null,null,null,null,null,null,null,null,null,null,null,null,null,null,null,null,null,null,null,null,null,null,null,null,null,null,null,null,null,null,null,null,null,null,null,null,null,null,null,null,null,null,null,null,null,null,null,null,null,null,null,null,null,null,null,null,null,null,null,null,null,null,null,null,null,null,null,null,null,null,null,null,null,null,null,null,null,null,null,null,null,null,null,null,null,null,null,null,null,null,null,null,null,null,null,null,null,null,null,null,null,null,null,null,null,null,null,null,null,null,null,null,null,null,null,null,null,null,null,null,null,null,null,null,null,null,null,null,null,null,null,null,null,null,null,null,null,null,null,null,null,null,null," 04. Enfermedades endocrinas",6]
["T2 Partes de enfermedades causadas o agravadas por el trabajo comunicados por género, situación y enfermedad. Comunidad de Madrid",null,null,null,null,null,null,null,null,null,null,null,null,null,null,null,null,null,null,null,null,null,null,null," 01. Enfermedades infecciosas y parasitarias",6]
[null,null,"Total",null,null,"Hombres",null,null," Mujeres",null,null,null,null,null,null,null,null,null,null,null,null,null,null,null," 03. Enfermedades de la sangre y del sistema inmunológico",2]
[{"$f":"Índice!F6","v":2023},null,"Total","Con baja","Sin baja","Total","Con baja","Sin baja","Total","Con baja","Sin baja",null,null,null,null,null,null,null,null,null,null,null,null,null," 04. Enfermedades endocrinas",8]
["Total",null,291,177,114,207,129,78,84,48,36,null,null,null,null,null,null,null,null,null,null,null,null,null," 05. Desórdenes mentales",17]
[" 01. Enfermedades infecciosas y parasitarias"," 1 b Otras enfermedades víricas",8,8,0,2,2,0,6,6,0,null,null,null,null,null,null,null,null,null,null,null,null,null," 06. Enfermedades del sistema nervioso central y periférico",6]
[" 04. Enfermedades endocrinas"," 4 a Trastornos del metabolismo",5,0,5,0,0,0,5,0,5,null,null,null,null,null,null,null,null,null,null,null,null,null," 07. Enfermedades de los sentidos",27]
[" 05. Desórdenes mentales"," 5 b Trastornos fóbicos y neuróticos",4,4,0,2,2,0,2,2,0,null,null,null,null,null,null,null,null,null,null,null,null,null," 09. Enfermedades del sistema cardiocirculatorio",29]
[null," 5 n Otros desórdenes mentales",15,14,1,8,8,0,7,6,1,null,null,null,null,null,null,null,null,null,null,null,null,null," 10. Enfermedades del sistema respiratorio",9]
[" 06. Enfermedades del sistema nervioso central y periférico"," 6 e Trastornos localizados de los nervios",2,2,0,1,1,0,1,1,0,null,null,null,null,null,null,null,null,null,null,null,null,null," 11. Enfermedades del sistema digestivo",4]
[" 07. Enfermedades de los sentidos"," 7 a Alteraciones de la visión y ceguera",4,2,2,4,2,2,0,0,0,null,null,null,null,null,null,null,null,null,null,null,null,null," 12. Enfermedades de la piel",20]
[null," 7 b Afecciones de la conjuntiva",4,1,3,3,1,2,1,0,1,null,null,null,null,null,null,null,null,null,null,null,null,null," 13. Enfermedades del aparato locomotor",311]
[null," 7 n Otras enfermedades de los sentidos",6,2,4,6,2,4,0,0,0,null,null,null,null,null,null,null,null,null,null,null,null,null," 18. n Otros síntomas y observaciones clínicas o de laboratorio anormales no clasificados en otras parte",4]
[" 09. Enfermedades del sistema cardiocirculatorio"," 9 a Enfermedad cardíaca isquémica",4,4,0,4,4,0,0,0,0,null,null,null,null,null,null,null,null,null,null,null,null,null," 19. Lesiones, heridas, intoxicaciones y otros factores externos",22]
[null," 9 e Enfermedades de las venas y de los vasos linfáticos",2,2,0,2,2,0,0,0,0,null,null,null,null,null,null,null,null,null,null,null,null,null," 23. Factores que afectan el estado sanitario",2]
[" 10. Enfermedades del sistema respiratorio"," 10 c Enfermedades crónicas de las vías respiratorias",2,0,2,1,0,1,1,0,1]
[null," 10 d Enfermedades pulmonares debidas a sustancias extrañas",1,0,1,1,0,1,0,0,0]
[" 11. Enfermedades del sistema digestivo"," 11 b Hernias",2,2,0,2,2,0,0,0,0]
[" 12. Enfermedades de la piel"," 12 a Infecciones de la piel y subcutáneas",5,4,1,3,2,1,2,2,0]
[null," 12 e Urticaria y eritema",1,0,1,1,0,1,0,0,0]
[null," 12 f Enfermedades de la piel y subcutáneas debidas a agentes externos",3,1,2,3,1,2,0,0,0]
[null," 12 g Enfermedades de los órganos accesorios de la piel",1,0,1,1,0,1,0,0,0]
[null," 12 h Otras enfermedades de la piel",6,1,5,5,1,4,1,0,1]
[" 13. Enfermedades del aparato locomotor"," 13 c Enfermedades de la columna vertebral y de la espalda",149,95,54,110,71,39,39,24,15]
[null," 13 n Otras enfermedades del aparato locomotor",54,29,25,38,24,14,16,5,11]
[" 19. Lesiones, heridas, intoxicaciones y otros factores externos"," 19 c Lesiones por otras causas externas",5,3,2,4,2,2,1,1,0]
[null," 19 n Otras lesiones, heridas, intoxicaciones y otros factores externos",7,3,4,6,2,4,1,1,0]
[" 23. Factores que afectan el estado sanitario"," 23 a Exámenes en personas potencialmente expuestas a enfermedades infecciosas o parasitarias",1,0,1,0,0,0,1,0,1]
["Fuente: PANOTRATSS"]

{"sheet":"Hoja24","index":6,"n_rows":27,"n_cols":5,"rows_kept":27,"cut":false,"hidden":true,"merged":[[8,0,19,0],[20,0,26,0]]}
[]
[]
[]
[]
[]
["T3 Partes de enfermedades causadas o agravadas por el trabajo comunicados por tipo patología, situación y categoría"]
[{"$f":"Índice!F6","v":2023},null,"Con baja","Sin baja","Total"]
["Total",null,177,114,{"$f":"C8+D8","v":291}]
["Enfermedad causada por el trabajo"," 01. Enfermedades infecciosas y parasitarias",7,0,{"$f":"C9+D9","v":7}]
[null," 04. Enfermedades endocrinas",0,5,5]
[null," 05. Desórdenes mentales",17,1,18]
[null," 06. Enfermedades del sistema nervioso central y periférico",1,0,1]
[null," 07. Enfermedades de los sentidos",5,8,13]
[null," 09. Enfermedades del sistema cardiocirculatorio",3,0,3]
[null," 10. Enfermedades del sistema respiratorio",0,2,2]
[null," 11. Enfermedades del sistema digestivo",2,0,2]
[null," 12. Enfermedades de la piel",6,10,16]
[null," 13. Enfermedades del aparato locomotor",116,77,193]
[null," 19. Lesiones, heridas, intoxicaciones y otros factores externos",6,6,12]
[null," 23. Factores que afectan el estado sanitario",0,1,1]
["Enfermedad o defecto agravado por el trabajo"," 01. Enfermedades infecciosas y parasitarias",1,0,1]
[null," 05. Desórdenes mentales",1,0,1]
[null," 06. Enfermedades del sistema nervioso central y periférico",1,0,1]
[null," 07. Enfermedades de los sentidos",0,1,1]
[null," 09. Enfermedades del sistema cardiocirculatorio",3,0,3]
[null," 10. Enfermedades del sistema respiratorio",0,1,1]
[null," 13. Enfermedades del aparato locomotor",8,2,10]

{"sheet":"Hoja25","index":7,"n_rows":31,"n_cols":7,"rows_kept":31,"cut":false,"hidden":true,"merged":[[30,0,30,6],[3,0,3,6],[4,1,4,3],[4,4,4,6]]}
[]
[]
[]
["T4 Partes de enfermedades causadas o agravadas por el trabajo comunicados por sección de actividad y género"]
[{"$f":"Índice!F6","v":2023},"Con baja",null,null,"Sin baja"]
[null,"Total","Hombres"," Mujeres","Total","Hombres"," Mujeres"]
[null,"Recuento","Recuento","Recuento","Recuento","Recuento","Recuento"]
["Total",177,129,48,114,78,36]
["A_Agricultura, ganadería, silvicultura y pesca",0,0,0,0,0,0]
["B_Industrias extractivas",0,0,0,0,0,0]
["C_Industria manufacturera",18,17,1,10,10,0]
["D_Suministro de energía eléctrica, gas, vapor y aire acondicionado",0,0,0,0,0,0]
["E_Suministro de agua, actividades de saneamiento, gestión de residuos y descontaminación",0,0,0,2,2,0]
["F_Construcción",26,25,1,15,14,1]
["G_Comercio al por mayor y al por menor; reparación de vehículos de motor y motocicletas",38,33,5,24,15,9]
["H_Transporte y almacenamiento",21,15,6,9,7,2]
["I_Hostelería",16,8,8,6,5,1]
["J_Información y comunicaciones",2,1,1,2,0,2]
["K_Actividades financieras y de seguros",3,0,3,5,0,5]
["L_Actividades inmobiliarias",0,0,0,0,0,0]
["M_Actividades profesionales, científicas y técnicas",4,4,0,2,1,1]
["N_Actividades administrativas y servicios auxiliares",29,17,12,27,19,8]
["O_Administración Pública y defensa; Seguiridad Social obligatoria",0,0,0,1,0,1]
["P_Educación",2,2,0,0,0,0]
["Q_Actividades sanitarias y de servicios sociales",10,2,8,6,2,4]
["R_Actividades artísticas, recreativas y de entretenimiento",6,5,1,2,2,0]
["S_Otros servicios",2,0,2,2,1,1]
["T_Actividades de los hogares como empleadores de personal doméstico; act.hogares como product bienes y servicio",0,0,0,1,0,1]
["U_Actividades de organizaciones y organismos extraterritoriales",0,0,0,0,0,0]
["No Consta",0,0,0,0,0,0]
["Fuente: PANOTRATSS"]

{"sheet":"Hoja26","index":8,"n_rows":22,"n_cols":7,"rows_kept":22,"cut":false,"hidden":true,"merged":[[6,0,8,0],[6,1,6,3],[6,4,6,6]]}
[]
[]
[]
[]
[]
["T5 Partes de enfermedades causadas o agravadas por el trabajo comunicados por edad y sexo según situación"]
[{"$f":"Índice!F6","v":2023},"Con baja",null,null,"Sin baja"]
[null,"Total","Hombres"," Mujeres","Total","Hombres"," Mujeres"]
[null,"Recuento","Recuento","Recuento","Recuento","Recuento","Recuento"]
["Total",177,129,48,114,78,36]
["2_De 16 - 19",4,3,1,4,4,0]
["3_De 20 - 24",14,10,4,6,5,1]
["4_De 25 - 29",17,9,8,17,14,3]
["5_De 30 - 34",19,13,6,12,8,4]
["6_De 35 - 39",25,21,4,14,8,6]
["7_De 40 - 44",27,19,8,10,6,4]
["8_De 45 - 49",29,22,7,16,9,7]
["9_De 50 - 54",18,12,6,15,9,6]
["10_De 55 - 59",14,11,3,12,8,4]
["11_De 60 - 64",8,8,0,8,7,1]
["12_ De 65 o más",2,1,1,0,0,0]
["Fuente: PANOTRATSS"]

{"sheet":"Hoja27","index":9,"n_rows":29,"n_cols":72,"rows_kept":29,"cut":false,"hidden":true,"merged":[[5,1,5,3],[5,4,5,6]]}
[]
[]
[]
[]
["T6 Partes de enfermedades causadas o agravadas por el trabajo comunicados por nacionalidad y sexo según situación ordenados por frecuencia"]
[{"$f":"Índice!F6","v":2023},"Con baja",null,null,"Sin baja"]
[null,"Total","Hombres"," Mujeres","Total","Hombres"," Mujeres"]
["Total",177,129,48,114,78,36]
["ESPAÑA",133,98,35,98,66,32]
["RUMANIA",8,5,3,7,5,2]
["MARRUECOS",5,5,0,1,1,0]
["COLOMBIA",3,2,1,3,2,1]
["ECUADOR",4,2,2,1,0,1]
["VENEZUELA",4,2,2,0,0,0,null,null,null,null,null,null,null,null,null,null,null,null,null,null,null,null,null,null,null,null,null,null,null,null,null,null,null,null,null,null,null,null,null,null,null,null,null,null,null,null,null,null,null,null,null,null,null,null,null,null,null,null,null,null,null,null,null,null,null,null,null,{"$f":"A9","v":"ESPAÑA"},{"$f":"BT14","v":231},null,{"$f":"+B9+E9","v":231}]
["POLONIA",3,3,0,1,1,0,null,null,null,null,null,null,null,null,null,null,null,null,null,null,null,null,null,null,null,null,null,null,null,null,null,null,null,null,null,null,null,null,null,null,null,null,null,null,null,null,null,null,null,null,null,null,null,null,null,null,null,null,null,null,null,null,null,null,null,null,null,{"$f":"A10","v":"RUMANIA"},{"$f":"BT15","v":15},null,15]
["PERU",3,2,1,1,1,0,null,null,null,null,null,null,null,null,null,null,null,null,null,null,null,null,null,null,null,null,null,null,null,null,null,null,null,null,null,null,null,null,null,null,null,null,null,null,null,null,null,null,null,null,null,null,null,null,null,null,null,null,null,null,null,null,null,null,null,null,null,"MARRUECOS",6,null,6]
["ARGELIA",3,1,2,0,0,0,null,null,null,null,null,null,null,null,null,null,null,null,null,null,null,null,null,null,null,null,null,null,null,null,null,null,null,null,null,null,null,null,null,null,null,null,null,null,null,null,null,null,null,null,null,null,null,null,null,null,null,null,null,null,null,null,null,null,null,null,null,"COLOMBIA",6,null,6]
["PARAGUAY",2,2,0,0,0,0,null,null,null,null,null,null,null,null,null,null,null,null,null,null,null,null,null,null,null,null,null,null,null,null,null,null,null,null,null,null,null,null,null,null,null,null,null,null,null,null,null,null,null,null,null,null,null,null,null,null,null,null,null,null,null,null,null,null,null,null,null,"ECUADOR",5,null,5]
["HONDURAS",2,2,0,0,0,0,null,null,null,null,null,null,null,null,null,null,null,null,null,null,null,null,null,null,null,null,null,null,null,null,null,null,null,null,null,null,null,null,null,null,null,null,null,null,null,null,null,null,null,null,null,null,null,null,null,null,null,null,null,null,null,null,null,null,null,null,null,"VENEZUELA",4,null,4]
["MOLDAVIA",1,1,0,0,0,0,null,null,null,null,null,null,null,null,null,null,null,null,null,null,null,null,null,null,null,null,null,null,null,null,null,null,null,null,null,null,null,null,null,null,null,null,null,null,null,null,null,null,null,null,null,null,null,null,null,null,null,null,null,null,null,null,null,null,null,null,null,"POLONIA",4,null,4]
["LITUANIA",0,0,0,1,1,0,null,null,null,null,null,null,null,null,null,null,null,null,null,null,null,null,null,null,null,null,null,null,null,null,null,null,null,null,null,null,null,null,null,null,null,null,null,null,null,null,null,null,null,null,null,null,null,null,null,null,null,null,null,null,null,null,null,null,null,null,null,"resto",{"$f":"SUM(B8,E8)-SUM(B9:B15,E9:E15)","v":20}]
["ITALIA",1,1,0,0,0,0]
["DOMINICANA (REPUBL.)",1,0,1,0,0,0]
["CUBA",1,1,0,0,0,0]
["CONGO",1,1,0,0,0,0]
["CABO VERDE",1,0,1,0,0,0]
["BULGARIA",0,0,0,1,1,0]
["BRASIL",1,1,0,0,0,0]
["Fuente: PANOTRATSS"]

{"sheet":"Hoja28","index":10,"n_rows":21,"n_cols":10,"rows_kept":21,"cut":false,"hidden":true,"merged":[[7,1,7,3],[7,4,7,6],[7,7,7,9],[7,0,8,0]]}
[]
[]
[]
[]
[]
[]
["T7 Partes de enfermedades causadas o agravadas por el trabajo comunicados por ocupación y género según situación ordenados por frecuencia"]
[{"$f":"Índice!F6","v":2023},"Con baja",null,null,"Sin baja",null,null,"Total"]
[null,"Total","Hombres"," Mujeres","Total","Hombres"," Mujeres","Total","Hombres"," Mujeres"]
["Total",177,129,48,114,78,36,{"$f":"B10+E10","v":291},{"$f":"C10+F10","v":207},{"$f":"D10+G10","v":84}]
["10_Sin asignar código",22,16,6,70,48,22,{"$f":"B11+E11","v":92},{"$f":"C11+F11","v":64},{"$f":"D11+G11","v":28}]
["9_Ocupaciones elementales",49,34,15,6,4,2,55,38,17]
["7_Artesanos y trabajadores cualificados de las industrias manufactureras y la construccion (excepto los operadores de ma",38,37,1,11,11,0,49,48,1]
["5_Trabajadores de los servicios de restauración, personales, protección y vendedores",23,13,10,8,3,5,31,16,15]
["8_Operadores de instalaciones y maquinaria, y montadores",18,15,3,5,5,0,23,20,3]
["2_Técnicos y profesionales científicos e intelectuales",9,3,6,6,1,5,15,4,11]
["3_Técnicos y profesionales de apoyo",6,3,3,4,3,1,10,6,4]
["4_Empleados contables, administrativos y otros empleados de oficina",7,3,4,0,0,0,7,3,4]
["1_Directores y gerentes",3,3,0,3,2,1,6,5,1]
["6_Tabajadores cualificados en el sector agrícola, ganadero, forestal y pesquero",2,2,0,1,1,0,3,3,0]
["Fuente: PANOTRATSS"]

{"sheet":"Hoja29","index":11,"n_rows":18,"n_cols":14,"rows_kept":18,"cut":false,"hidden":true,"merged":[[4,0,4,11]]}
[]
[]
[]
[]
["T8 Partes de enfermedades causadas o agravadas por el trabajo comunicados por ocupación según categoria"]
[{"$f":"Índice!F6","v":2023},"Total"," 01. Enfermedades infecciosas y parasitarias"," 04. Enfermedades endocrinas"," 05. Desórdenes mentales"," 06. Enfermedades del sistema nervioso central y periférico"," 07. Enfermedades de los sentidos"," 09. Enfermedades del sistema cardiocirculatorio"," 10. Enfermedades del sistema respiratorio"," 11. Enfermedades del sistema digestivo"," 12. Enfermedades de la piel"," 13. Enfermedades del aparato locomotor"," 19. Lesiones, heridas, intoxicaciones y otros factores externos"," 23. Factores que afectan el estado sanitario"]
["Total",291,8,5,19,2,14,6,3,2,16,203,12,1]
["10_Sin asignar código",92,0,1,2,0,7,0,1,0,5,71,4,1]
["1_Directores y gerentes",6,0,0,2,0,1,0,0,0,0,3,0,0]
["2_Técnicos y profesionales científicos e intelectuales",15,5,4,0,0,0,1,0,0,0,5,0,0]
["3_Técnicos y profesionales de apoyo",10,1,0,0,0,1,0,1,0,1,5,1,0]
["4_Empleados contables, administrativos y otros empleados de oficina",7,0,0,1,0,0,0,0,0,0,6,0,0]
["5_Trabajadores de los servicios de restauración, personales, protección y vendedores",31,1,0,4,0,0,2,0,1,2,20,1,0]
["6_Tabajadores cualificados en el sector agrícola, ganadero, forestal y pesquero",3,0,0,0,0,0,0,1,0,1,1,0,0]
["7_Artesanos y trabajadores cualificados de las industrias manufactureras y la construccion (excepto los operadores de ma",49,1,0,1,1,3,0,0,0,3,35,5,0]
["8_Operadores de instalaciones y maquinaria, y montadores",23,0,0,6,0,0,1,0,0,1,14,1,0]
["9_Ocupaciones elementales",55,0,0,3,1,2,2,0,1,3,43,0,0]
["Fuente: PANOTRATSS"]

{"sheet":"Hoja30","index":12,"n_rows":26,"n_cols":13,"rows_kept":26,"cut":false,"hidden":true,"merged":[[6,0,7,0],[6,4,6,6],[6,7,6,9],[6,10,6,12],[6,1,6,3]]}
[]
[]
[]
[]
[]
["T9 Partes de enfermedad comunicados por  grupo de enfermedad, género según sector de actividad "]
[{"$f":"Índice!F6","v":2023},"Total",null,null,"Industria, energía y minería",null,null,"Construcción",null,null,"Servicios"]
[null,"Total","Hombres"," Mujeres","Total","Hombres"," Mujeres","Total","Hombres"," Mujeres","Total","Hombres"," Mujeres"]
["Total",291,207,84,30,29,1,41,39,2,220,139,81]
[" 01. Enfermedades infecciosas y parasitarias",8,2,6,0,0,0,1,1,0,7,1,6]
[" 02. Neoplasias",0,0,0,0,0,0,0,0,0,0,0,0]
[" 03. Enfermedades de la sangre y del sistema inmunológico",0,0,0,0,0,0,0,0,0,0,0,0]
[" 04. Enfermedades endocrinas",5,0,5,0,0,0,0,0,0,5,0,5]
[" 05. Desórdenes mentales",19,10,9,1,1,0,1,1,0,17,8,9]
[" 06. Enfermedades del sistema nervioso central y periférico",2,1,1,0,0,0,0,0,0,2,1,1]
[" 07. Enfermedades de los sentidos",14,13,1,2,2,0,4,4,0,8,7,1]
[" 09. Enfermedades del sistema cardiocirculatorio",6,6,0,0,0,0,0,0,0,6,6,0]
[" 10. Enfermedades del sistema respiratorio",3,2,1,0,0,0,1,1,0,2,1,1]
[" 11. Enfermedades del sistema digestivo",2,2,0,0,0,0,0,0,0,2,2,0]
[" 12. Enfermedades de la piel",16,13,3,5,5,0,3,3,0,8,5,3]
[" 13. Enfermedades del aparato locomotor",203,148,55,21,20,1,25,24,1,157,104,53]
[" 14. Enfermedades del sistema genitourinario",0,0,0,0,0,0,0,0,0,0,0,0]
[" 18. Otros síntomas y observaciones clínicas o de laboratorio anormales no clasificados en otras parte",0,0,0,0,0,0,0,0,0,0,0,0]
[" 19. Lesiones, heridas, intoxicaciones y otros factores externos",12,10,2,1,1,0,6,5,1,5,4,1]
[" 23. Factores que afectan el estado sanitario",1,0,1,0,0,0,0,0,0,1,0,1]
["Fuente: PANOTRATSS"]

{"sheet":"Anexo PANOTRATSS","index":13,"n_rows":83,"n_cols":3,"rows_kept":83,"cut":false,"hidden":false,"merged":[]}
["Volver índice"]
[]
[]
[]
[]
[]
[]
[]
[]
[]
[]
[]
[]
["Código",null,"Descripción Categoria"]
[]
[1,null,"01. Enfermedades infecciosas y parasitarias "]
[2,null,"02. Neoplasias"]
[3,null,"03. Enfermedades de la sangre y del sistema inmunológico "]
[4,null,"04. Enfermedades endocrinas "]
[5,null,"05. Desórdenes mentales "]
[6,null,"06. Enfermedades del sistema nervioso central y periférico "]
[7,null,"07. Enfermedades de los sentidos "]
[9,null,"09. Enfermedades del sistema cardiocirculatorio "]
[10,null,"10. Enfermedades del sistema respiratorio "]
[11,null,"11. Enfermedades del sistema digestivo "]
[12,null,"12. Enfermedades de la piel"]
[13,null,"13. Enfermedades del aparato locomotor "]
[14,null,"14. Enfermedades del sistema genitourinario "]
[18,null,"18. n Otros síntomas y observaciones clínicas o de laboratorio anormales no clasificados en otras parte"]
[19,null,"19. Lesiones, heridas, intoxicaciones y otros factores externos "]
[23,null,"23. Factores que afectan el estado sanitario "]
[]
["Código",null,"Descripción Enfermedad"]
[]
[1,"b","Otras enfermedades víricas"]
[1,"n","Otras enfermedades infecciosas y parasitarias"]
[2,"n","Neoplasías"]
[3,"a","Coagulopatías y otras enfermedades de la sangre y órganos relacionados"]
[3,"n","Otras enfermedades de la sangre y del sistema inmunológico"]
[4,"a","Trastornos del metabolismo"]
[4,"n","Otras enfermedades endocrinas"]
[5,"a ","Desordenes afectivos"]
[5,"b","Trastornos fóbicos y neuróticos"]
[5,"n","Otros desórdenes mentales"]
[6,"a","Enfermedades agudas del sistema nervioso central"]
[6,"e","Trastornos localizados de los nervios"]
[6,"f","Neuropatías y polineuropatías"]
[7,"a","Alteraciones de la visión y ceguera"]
[7,"b","Afecciones de la conjuntiva"]
[7,"c","Afecciones de la esclerótida, córnea, iris y cuerpos ciliares."]
[7,"e","Afecciones del interior del ojo y de la retina"]
[7,"h","Alteraciones de la visión y ceguera"]
[7,"i","Enfermedades del oido medio"]
[7,"j","Enfermedades del odio interno"]
[7,"k","Otras enfermedades del oido"]
[7,"n","Otras enfermedades de los sentidos"]
[9,"a","Enfermedad cardíaca isquémica"]
[9,"b","Enfermedades de la circulación pulmonar"]
[9,"c","Otras enfermedades cardíacas"]
[9,"d","Enfermedades de la circulación cerebral"]
[9,"e","Enfermedades de las venas y de los vasos linfáticos"]
[9,"f","Otras enfermedades del sistema circulatorio"]
[10,"a","Enfermedades infecciosas del tracto respiratorio superior"]
[10,"b","Otras enfermedades de las vías respiratorias altas"]
[10,"c","Enfermedades crónicas de las vías respiratorias"]
[10,"d","Enfermedades pulmonares debidas a sustancias extrañas"]
[10,"e","Otras enfermedades de la pleura"]
[11,"a","Enfermedades de la boca y de los dientes"]
[11,"b","Hernias"]
[11,"n","Otras enfermedades del sistema digestivo"]
[12,"a","Infecciones de la piel y subcutáneas"]
[12,"e","Urticaria y eritema"]
[12,"f","Enfermedades de la piel y subcutáneas debidas a agentes externos"]
[12,"g","Enfermedades de los órganos accesorios de la piel"]
[12,"h","Otras enfermedades de la piel"]
[13,"c","Enfermedades de la columna vertebral y de la espalda"]
[13,"e","Osteopatías y condropatías"]
[13,"n","Otras enfermedades del aparato locomotor"]
[14,"a","Enfermedades del aparato genital masculino. Enfermedades renales"]
[18,"n","Otros sintomas y observaciones clínicas o de laboratorio anormales n.c.e.o.p."]
[19,"c","Lesiones por otras causas externas"]
[19,"n","Otras lesiones, heridas, intoxicaciones y otros factores externos"]
[23,"a","Exámenes en personas potencialmente expuestas a enfermedades infecciosas o parasitarias"]